[Event "7th Cesme Open-A 2019"]
[Site "Cesme"]
[Date "2019.06.24"]
[Round "1"]
[White "Bernadskiy, Vitaliy"]
[Black "Mammadov, Gulam"]
[Result "1/2-1/2"]
[ECO "B52"]
[WhiteElo "2578"]
[BlackElo "2059"]
[Annotator "ChessBase"]
[PlyCount "135"]
[EventDate "2019.06.24"]
[EventType "swiss"]
[EventCountry "TUR"]
[SourceTitle "playchess.com"]
[Source "ChessBase"]
[SourceQuality "1"]
[TimeControl "5400+30"]

1. e4 c5 2. Nf3 d6 3. Bb5+ Bd7 4. Bxd7+ Qxd7 5. O-O Nc6 6. c3 Nf6 7. Qe2 {[%emt 0:01:30]} e6 {[%emt 0:10:30]} 8. d4 {[%emt 0:00:30]} cxd4 {[%emt 0:00:30]} 9. cxd4 {[%emt 0:00:00]} d5 {[%emt 0:01:30]} 10. e5 {[%emt 0:00:00]} Ne4 {[%emt 0:05:30]} 11. Be3 {[%emt 0:00:30]} Be7 {[%emt 0:03:30]} 12. Ne1 {[%emt 0:00:00]} f6 {[%emt 0:02:30]} 13. f3 {[%emt 0:00:00]} Ng5 {[%emt 0:00:00]} 14. Nd3 {[%emt 0:00:30]} fxe5 {[%emt 0:02:00]} 15. dxe5 {[%emt 0:00:00]} b6 {[%emt 0:02:30]} 16. Nd2 {[%emt 0:01:00]} Nf7 {[%emt 0:05:30]} 17. f4 {[%emt 0:00:30]} O-O {[%emt 0:00:30]} 18. g4 {[%emt 0:05:30]} Nb4 {[%emt 0:07:30]} 19. Nxb4 {[%emt 0:04:30]} Bxb4 {[%emt 0:00:00]} 20. Nb3 {[%emt 0:00:00]} Rac8 {[%emt 0:12:00]} 21. Rad1 {[%emt 0:02:00]} Nd8 {[%emt 0:16:30]} 22. Qd3 {[%emt 0:13:30]} Bc5 {[%emt 0:07:30]} 23. Rf2 {[%emt 0:10:30]} Nb7 {[%emt 0:03:43]} 24. f5 {[%emt 0:00:30]} Qa4 {[%emt 0:06:35]} 25. h3 {[%emt 0:05:30]} Bxe3 {[%emt 0:02:04]} 26. Qxe3 {[%emt 0:00:00]} Nc5 {[%emt 0:00:02]} 27. Rdf1 {[%emt 0:04:00]} Qe4 {[%emt 0:03:40]} 28. Qxe4 {[%emt 0:03:30]} Nxe4 {[%emt 0:00:30]} 29. Rg2 {[%emt 0:00:00]} Rc4 {[%emt 0:00:57]} 30. Nc1 {[%emt 0:10:00]} Kf7 {[%emt 0:04:37]} 31. b3 {[%emt 0:01:30]} Rcc8 {[%emt 0:01:14]} 32. Ne2 {[%emt 0:00:30]} Rfe8 {[%emt 0:02:12]} 33. Nd4 {[%emt 0:01:30]} exf5 {[%emt 0:00:30]} 34. e6+ {[%emt 0:00:00]} Rxe6 {[%emt 0:00:29]} 35. Nxe6 {[%emt 0:06:00]} Kxe6 {[%emt 0:00:30]} 36. gxf5+ {[%emt 0:00:30]} Kf6 {[%emt 0:00:03]} 37. Rd1 {[%emt 0:00:30]} Rd8 {[%emt 0:00:17]} 38. Rg4 {[%emt 0:00:00]} Nc3 {[%emt 0:02:54]} 39. Rd2 {[%emt 0:00:00]} Rd7 {[%emt 0:00:06]} 40. Kf2 {[%emt 0:00:00]} Kxf5 {[%emt 0:00:33]} 41. Ke3 {[%emt 0:00:00]} Re7+ {[%emt 0:00:31]} 42. Kf3 {[%emt 0:01:30]} Ke6 {[%emt 0:00:06]} 43. Rc2 {[%emt 0:02:30]} Ne4 {[%emt 0:00:04]} 44. b4 {[%emt 0:00:30]} Ke5 {[%emt 0:00:21]} 45. Ke3 {[%emt 0:01:30]} Rf7 {[%emt 0:00:30]} 46. Rc8 {[%emt 0:00:30]} Nd6 {[%emt 0:01:43]} 47. Rd8 {[%emt 0:00:30]} d4+ {[%emt 0:00:36]} 48. Ke2 {[%emt 0:00:00]} h6 {[%emt 0:00:24]} 49. Rg8 {[%emt 0:01:00]} g5 {[%emt 0:00:27]} 50. Rh8 {[%emt 0:02:30]} Rf6 {[%emt 0:00:18]} 51. h4 {[%emt 0:00:30]} Kd5 {[%emt 0:00:46]} 52. hxg5 {[%emt 0:00:30]} hxg5 {[%emt 0:00:31]} 53. Rxg5+ {[%emt 0:00:30]} Kc4 {[%emt 0:00:00]} 54. Rg4 {[%emt 0:01:30]} Re6+ {[%emt 0:00:30]} 55. Kd2 {[%emt 0:01:30]} Ne4+ {[%emt 0:00:52]} 56. Kc2 {[%emt 0:00:30]} Kxb4 {[%emt 0:00:17]} 57. Rhh4 {[%emt 0:00:30]} Nc5 {[%emt 0:00:58]} 58. Rxd4+ {[%emt 0:00:30]} Kb5 {[%emt 0:00:30]} 59. Rd2 {[%emt 0:00:00]} a5 {[%emt 0:00:00]} 60. Rg2 {[%emt 0:00:00]} Rf6 {[%emt 0:00:14]} 61. Kc3 {[%emt 0:00:30]} Rf3+ {[%emt 0:00:27]} 62. Kd4 {[%emt 0:00:30]} Rd3+ {[%emt 0:00:30]} 63. Ke5 {[%emt 0:00:30]} Re3+ {[%emt 0:00:00]} 64. Kd6 {[%emt 0:01:30]} Re6+ {[%emt 0:00:28]} 65. Kd5 {[%emt 0:00:00]} Rf6 {[%emt 0:00:01]} 66. Rb2+ {[%emt 0:01:00]} Ka6 {[%emt 0:00:30]} 67. Rh5 {[%emt 0:00:00]} Nd3 {[%emt 0:00:30]} 68. Rbh2 1/2-1/2

[Event "7th Cesme Open-A 2019"]
[Site "Cesme"]
[Date "2019.06.24"]
[Round "1"]
[White "Quparadze, Giga"]
[Black "Ozcelik, Ali Kaan"]
[Result "1-0"]
[ECO "C88"]
[WhiteElo "2498"]
[BlackElo "1989"]
[Annotator "ChessBase"]
[PlyCount "57"]
[EventDate "2019.06.24"]
[EventType "swiss"]
[EventCountry "TUR"]
[SourceTitle "playchess.com"]
[Source "ChessBase"]
[SourceQuality "1"]
[TimeControl "5400+30"]

1. e4 e5 2. Nf3 Nc6 3. Bb5 a6 4. Ba4 Nf6 5. O-O Be7 6. Re1 b5 7. Bb3 O-O 8. a4 Bb7 9. d3 d6 10. Nbd2 {[%emt 0:04:00]} Na5 {[%emt 0:13:00]} 11. Ba2 {[%emt 0:00:00]} c5 {[%emt 0:00:30]} 12. Nf1 {[%emt 0:00:00]} c4 {[%emt 0:03:30]} 13. Ne3 {[%emt 0:00:30]} cxd3 {[%emt 0:00:30]} 14. cxd3 {[%emt 0:00:00]} g6 {[%emt 0:01:30]} 15. h3 {[%emt 0:03:00]} bxa4 {[%emt 0:08:30]} 16. Qxa4 {[%emt 0:00:00]} Nc6 {[%emt 0:04:30]} 17. Nd5 {[%emt 0:00:00]} Nxd5 {[%emt 0:17:30]} 18. Bxd5 {[%emt 0:00:30]} Qb6 {[%emt 0:00:30]} 19. Bh6 {[%emt 0:00:30]} Rfc8 {[%emt 0:00:30]} 20. Rec1 {[%emt 0:04:30]} Bf6 {[%emt 0:22:30]} 21. Bxf7+ {[%emt 0:03:30]} Kxf7 {[%emt 0:03:30]} 22. Qa2+ {[%emt 0:00:00]} Ke7 {[%emt 0:09:00]} 23. Ng5 {[%emt 0:00:00]} Nd8 {[%emt 0:06:43]} 24. Qg8 {[%emt 0:00:00]} Rxc1+ {[%emt 0:02:00]} 25. Rxc1 {[%emt 0:00:00]} Kd7 {[%emt 0:00:00]} 26. Nxh7 {[%emt 0:02:30]} Be7 {[%emt 0:01:15]} 27. Qg7 {[%emt 0:00:00]} Nc6 {[%emt 0:03:07]} 28. Nf6+ {[%emt 0:01:00]} Kd8 {[%emt 0:02:35]} 29. Qg8+ {[%emt 0:00:30]} 1-0

[Event "7th Cesme Open-A 2019"]
[Site "Cesme"]
[Date "2019.06.24"]
[Round "1"]
[White "Lavrov, Maxim"]
[Black "Bilyap, Enis"]
[Result "1-0"]
[ECO "B07"]
[WhiteElo "2401"]
[BlackElo "1941"]
[Annotator "NA"]
[PlyCount "45"]
[EventDate "2019.06.24"]
[EventType "swiss"]
[EventCountry "TUR"]
[SourceTitle "playchess.com"]
[Source "ChessBase"]
[SourceQuality "1"]
[TimeControl "5400+30"]

1. e4 d6 2. d4 Nf6 3. Nc3 c6 4. f4 Qa5 5. e5 Ne4 6. Bd2 {[%emt 0:07:00]} Nxd2 {[%emt 0:06:00]} 7. Qxd2 {[%emt 0:01:30]} Bf5 {[%emt 0:04:30]} 8. Nf3 {[%emt 0:00:30]} e6 {[%emt 0:05:30]} 9. Bd3 {[%emt 0:06:30]} Bxd3 {[%emt 0:01:30]} 10. Qxd3 {[%emt 0:00:00]} dxe5 {[%emt 0:12:30]} 11. fxe5 {[%emt 0:00:00]} Nd7 {[%emt 0:09:30]} 12. O-O {[%emt 0:05:30]} O-O-O {[%emt 0:07:30]} 13. Qe2 {[%emt 0:03:30]} Be7 {[%emt 0:02:30]} 14. Ne4 {[%emt 0:00:30]} h6 {[%emt 0:05:30]} 15. c4 {[%emt 0:02:30]} f6 {[%emt 0:05:30]} 16. exf6 {[%emt 0:01:30]} gxf6 {[%emt 0:00:30]} 17. Ng3 {[%emt 0:03:30]} e5 {[%emt 0:03:30]} 18. Nf5 {[%emt 0:02:30]} Bf8 {[%emt 0:11:30]} 19. Kh1 {[%emt 0:12:30]} exd4 {[%emt 0:00:30]} 20. N3xd4 {[%emt 0:00:30]} Ne5 {[%emt 0:02:30]} 21. a3 {[%emt 0:06:30]} Re8 {[%emt 0:04:32]} 22. Qh5 {[%emt 0:02:30]} Rd8 {[%emt 0:07:28]} 23. Ne6 {[%emt 0:01:30]} 1-0

[Event "7th Cesme Open-A 2019"]
[Site "Cesme"]
[Date "2019.06.24"]
[Round "1"]
[White "Erdogdu, Mert"]
[Black "Buke, Furkan"]
[Result "1-0"]
[ECO "B27"]
[WhiteElo "2391"]
[BlackElo "1935"]
[Annotator "NA"]
[PlyCount "73"]
[EventDate "2019.06.24"]
[EventType "swiss"]
[EventCountry "TUR"]
[SourceTitle "playchess.com"]
[Source "ChessBase"]
[SourceQuality "1"]
[TimeControl "5400+30"]

1. e4 c5 2. Nf3 g6 3. d4 cxd4 4. Qxd4 Nf6 5. Nc3 Nc6 6. Qa4 d6 7. e5 dxe5 8. Nxe5 {[%emt 0:08:00]} Qd4 {[%emt 0:07:00]} 9. Nxc6 {[%emt 0:00:30]} Qxa4 {[%emt 0:00:30]} 10. Nxa4 {[%emt 0:00:30]} bxc6 {[%emt 0:00:30]} 11. b3 {[%emt 0:00:00]} e5 {[%emt 0:04:30]} 12. Bb2 {[%emt 0:07:00]} Bb4+ {[%emt 0:01:30]} 13. c3 {[%emt 0:00:00]} Bd6 {[%emt 0:00:30]} 14. O-O-O {[%emt 0:06:00]} Bc7 {[%emt 0:00:30]} 15. Ba3 {[%emt 0:08:30]} Ne4 {[%emt 0:11:30]} 16. Bc4 {[%emt 0:01:30]} f5 {[%emt 0:02:30]} 17. Rhf1 {[%emt 0:01:30]} h6 {[%emt 0:13:30]} 18. f3 {[%emt 0:02:30]} Nf6 {[%emt 0:00:30]} 19. Bd6 {[%emt 0:03:30]} Rh7 {[%emt 0:01:30]} 20. Rfe1 {[%emt 0:00:30]} e4 {[%emt 0:10:30]} 21. Nc5 {[%emt 0:01:30]} Bb6 {[%emt 0:02:30]} 22. fxe4 {[%emt 0:00:30]} f4 {[%emt 0:00:00]} 23. h3 {[%emt 0:03:30]} g5 {[%emt 0:04:00]} 24. e5 {[%emt 0:00:30]} Nd5 {[%emt 0:00:30]} 25. Rxd5 {[%emt 0:02:30]} cxd5 {[%emt 0:00:30]} 26. Bxd5 {[%emt 0:00:30]} Bxc5 {[%emt 0:00:00]} 27. Bxa8 {[%emt 0:00:30]} Be3+ {[%emt 0:03:00]} 28. Kb2 {[%emt 0:00:30]} Bb7 {[%emt 0:00:00]} 29. Bxb7 {[%emt 0:00:00]} Rxb7 {[%emt 0:00:00]} 30. c4 {[%emt 0:00:00]} Kd7 {[%emt 0:00:30]} 31. Kc3 {[%emt 0:00:30]} h5 {[%emt 0:00:30]} 32. Kd3 {[%emt 0:00:00]} g4 {[%emt 0:00:30]} 33. hxg4 {[%emt 0:00:00]} hxg4 {[%emt 0:00:00]} 34. Rh1 {[%emt 0:00:30]} Ke6 {[%emt 0:00:00]} 35. Ke4 {[%emt 0:00:30]} Rg7 {[%emt 0:00:30]} 36. c5 {[%emt 0:00:30]} Kd7 {[%emt 0:00:30]} 37. Kd5 {[%emt 0:01:30]} 1-0

[Event "7th Cesme Open-A 2019"]
[Site "Cesme"]
[Date "2019.06.24"]
[Round "1"]
[White "Bashirli, Nail"]
[Black "Tirak, Mert"]
[Result "1-0"]
[ECO "B92"]
[WhiteElo "2367"]
[BlackElo "1997"]
[Annotator "NA"]
[PlyCount "75"]
[EventDate "2019.06.24"]
[EventType "swiss"]
[EventCountry "TUR"]
[SourceTitle "playchess.com"]
[Source "ChessBase"]
[SourceQuality "1"]
[TimeControl "5400+30"]

1. e4 c5 2. Nf3 d6 3. Nc3 a6 {[%emt 0:09:30]} 4. d4 {[%emt 0:01:00]} cxd4 {[%emt 0:00:30]} 5. Nxd4 {[%emt 0:00:30]} Nf6 {[%emt 0:00:30]} 6. Be2 {[%emt 0:00:00]} e5 {[%emt 0:00:30]} 7. Nf3 {[%emt 0:00:00]} h6 {[%emt 0:00:30]} 8. Nd2 {[%emt 0:00:30]} b5 {[%emt 0:00:30]} 9. a4 {[%emt 0:00:00]} b4 {[%emt 0:00:30]} 10. Nd5 {[%emt 0:00:00]} Bb7 {[%emt 0:01:30]} 11. Nxf6+ {[%emt 0:11:30]} Qxf6 {[%emt 0:14:30]} 12. O-O {[%emt 0:03:30]} Qd8 {[%emt 0:03:30]} 13. Bf3 {[%emt 0:05:30]} Qc7 {[%emt 0:05:30]} 14. b3 {[%emt 0:02:30]} Nd7 {[%emt 0:03:30]} 15. Nc4 {[%emt 0:03:30]} a5 {[%emt 0:02:30]} 16. Re1 {[%emt 0:00:30]} Nc5 {[%emt 0:17:30]} 17. Bb2 {[%emt 0:01:30]} Be7 {[%emt 0:02:30]} 18. c3 {[%emt 0:01:30]} O-O {[%emt 0:00:30]} 19. cxb4 {[%emt 0:01:30]} axb4 {[%emt 0:00:30]} 20. Rc1 {[%emt 0:00:00]} Ba6 {[%emt 0:05:30]} 21. g3 {[%emt 0:06:00]} Rfd8 {[%emt 0:07:30]} 22. h4 {[%emt 0:03:30]} Bc8 {[%emt 0:05:18]} 23. Re3 {[%emt 0:01:30]} Be6 {[%emt 0:05:54]} 24. Bg4 {[%emt 0:00:30]} Qb7 {[%emt 0:00:55]} 25. Bxe6 {[%emt 0:00:30]} Nxe6 {[%emt 0:00:57]} 26. Qf3 {[%emt 0:05:30]} Rac8 {[%emt 0:01:53]} 27. Rd3 {[%emt 0:01:30]} Nc5 {[%emt 0:02:28]} 28. Rd5 {[%emt 0:03:30]} f5 {[%emt 0:02:42]} 29. exf5 {[%emt 0:09:30]} Nxb3 {[%emt 0:00:58]} 30. Rcd1 {[%emt 0:00:30]} Nc5 {[%emt 0:02:39]} 31. a5 {[%emt 0:01:30]} Bf6 {[%emt 0:00:36]} 32. Qe2 {[%emt 0:00:30]} Qa6 {[%emt 0:03:56]} 33. Rxd6 {[%emt 0:00:30]} Rxd6 {[%emt 0:00:00]} 34. Rxd6 {[%emt 0:00:30]} Qb5 {[%emt 0:00:00]} 35. Rb6 {[%emt 0:00:00]} Qd7 {[%emt 0:00:57]} 36. Nd6 {[%emt 0:00:00]} Rc6 {[%emt 0:01:13]} 37. Rb8+ {[%emt 0:00:00]} Bd8 {[%emt 0:00:00]} 38. Qxe5 {[%emt 0:00:00]} 1-0

[Event "7th Cesme Open-A 2019"]
[Site "Cesme"]
[Date "2019.06.24"]
[Round "1"]
[White "Koksal, Ege"]
[Black "Yildizak, Goksel"]
[Result "1-0"]
[ECO "D36"]
[WhiteElo "2363"]
[BlackElo "1950"]
[Annotator "NA"]
[PlyCount "61"]
[EventDate "2019.06.24"]
[EventType "swiss"]
[EventCountry "TUR"]
[SourceTitle "playchess.com"]
[Source "ChessBase"]
[SourceQuality "1"]
[TimeControl "5400+30"]

1. d4 Nf6 2. c4 e6 3. Nf3 d5 4. Nc3 c6 5. cxd5 exd5 6. Qc2 Be7 7. Bg5 O-O 8. e3 Be6 9. Bd3 Nbd7 {[%emt 0:07:30]} 10. h3 {[%emt 0:04:00]} h6 {[%emt 0:00:30]} 11. Bf4 {[%emt 0:00:00]} c5 {[%emt 0:02:30]} 12. dxc5 {[%emt 0:03:00]} Nxc5 {[%emt 0:02:30]} 13. O-O {[%emt 0:00:30]} Rc8 {[%emt 0:01:30]} 14. Rfd1 {[%emt 0:03:30]} Qb6 {[%emt 0:02:30]} 15. Be5 {[%emt 0:01:30]} Nce4 {[%emt 0:06:30]} 16. Qe2 {[%emt 0:02:30]} Nxc3 {[%emt 0:03:30]} 17. Bxc3 {[%emt 0:00:30]} Ne4 {[%emt 0:00:30]} 18. Bd4 {[%emt 0:00:30]} Bc5 {[%emt 0:01:30]} 19. Rac1 {[%emt 0:06:30]} Bxd4 {[%emt 0:03:30]} 20. Nxd4 {[%emt 0:00:30]} a6 {[%emt 0:01:30]} 21. Bxe4 {[%emt 0:01:30]} dxe4 {[%emt 0:00:30]} 22. b3 {[%emt 0:00:30]} Rxc1 {[%emt 0:02:30]} 23. Rxc1 {[%emt 0:00:30]} Qd6 {[%emt 0:02:30]} 24. Rc3 {[%emt 0:03:30]} Rd8 {[%emt 0:10:30]} 25. Qc2 {[%emt 0:03:30]} Qe5 {[%emt 0:07:30]} 26. Rc7 {[%emt 0:01:30]} Rd7 {[%emt 0:21:30]} 27. Rc8+ {[%emt 0:01:30]} Kh7 {[%emt 0:00:30]} 28. f4 {[%emt 0:00:30]} Qd5 {[%emt 0:04:30]} 29. f5 {[%emt 0:02:30]} Bxf5 {[%emt 0:06:35]} 30. Rc5 {[%emt 0:00:00]} Qd6 {[%emt 0:00:00]} 31. Rxf5 {[%emt 0:01:00]} 1-0

[Event "7th Cesme Open-A 2019"]
[Site "Cesme"]
[Date "2019.06.24"]
[Round "1"]
[White "Kamer, Kayra"]
[Black "Buker, Muhittin"]
[Result "1-0"]
[ECO "B13"]
[WhiteElo "2353"]
[BlackElo "1991"]
[Annotator "NA"]
[PlyCount "123"]
[EventDate "2019.06.24"]
[EventType "swiss"]
[EventCountry "TUR"]
[SourceTitle "playchess.com"]
[Source "ChessBase"]
[SourceQuality "1"]
[TimeControl "5400+30"]

1. Nf3 Nf6 2. e3 c5 3. d4 cxd4 4. exd4 d5 5. c4 Nc6 6. Nc3 Bg4 7. cxd5 Nxd5 {[%emt 0:04:30]} 8. Qb3 {[%emt 0:06:00]} Bxf3 {[%emt 0:13:30]} 9. gxf3 {[%emt 0:00:30]} e6 {[%emt 0:00:30]} 10. Qxb7 {[%emt 0:01:30]} Nxd4 {[%emt 0:01:30]} 11. Bb5+ {[%emt 0:00:30]} Nxb5 {[%emt 0:00:30]} 12. Qc6+ {[%emt 0:00:30]} Ke7 {[%emt 0:02:30]} 13. Qxb5 {[%emt 0:05:30]} Qd7 {[%emt 0:08:30]} 14. Nxd5+ {[%emt 0:01:30]} Qxd5 {[%emt 0:00:30]} 15. Qxd5 {[%emt 0:01:30]} exd5 {[%emt 0:00:30]} 16. Bf4 {[%emt 0:00:00]} Kf6 {[%emt 0:00:30]} 17. O-O-O {[%emt 0:01:00]} Rd8 {[%emt 0:02:30]} 18. Be3 {[%emt 0:00:30]} Rd7 {[%emt 0:00:30]} 19. Rhg1 {[%emt 0:02:30]} Rg8 {[%emt 0:02:30]} 20. Rg4 {[%emt 0:01:30]} g6 {[%emt 0:05:30]} 21. Ra4 {[%emt 0:00:30]} Ke6 {[%emt 0:03:30]} 22. Rxa7 {[%emt 0:01:30]} Rxa7 {[%emt 0:00:30]} 23. Bxa7 {[%emt 0:00:30]} Bd6 {[%emt 0:00:00]} 24. Be3 {[%emt 0:00:30]} Ra8 {[%emt 0:00:00]} 25. Kb1 {[%emt 0:00:30]} Ra4 {[%emt 0:00:30]} 26. b3 {[%emt 0:00:30]} Rh4 {[%emt 0:00:30]} 27. a4 {[%emt 0:00:30]} Bxh2 {[%emt 0:03:30]} 28. a5 {[%emt 0:02:30]} Rb4 {[%emt 0:00:30]} 29. Kc2 {[%emt 0:00:00]} Be5 {[%emt 0:05:30]} 30. a6 {[%emt 0:01:00]} Rb8 {[%emt 0:00:30]} 31. a7 {[%emt 0:06:30]} Ra8 {[%emt 0:00:30]} 32. Bc5 {[%emt 0:00:30]} Bd6 {[%emt 0:01:30]} 33. Bd4 {[%emt 0:00:00]} Kd7 {[%emt 0:00:30]} 34. Kd3 {[%emt 0:01:00]} Kc6 {[%emt 0:00:30]} 35. Rc1+ {[%emt 0:04:30]} Kb7 {[%emt 0:00:30]} 36. b4 {[%emt 0:01:30]} f6 {[%emt 0:03:30]} 37. Re1 {[%emt 0:07:30]} Be5 {[%emt 0:05:30]} 38. Bc5 {[%emt 0:00:00]} g5 {[%emt 0:10:30]} 39. Rh1 {[%emt 0:00:00]} Rh8 {[%emt 0:01:30]} 40. Rh6 {[%emt 0:00:00]} Bb2 {[%emt 0:01:30]} 41. b5 {[%emt 0:00:00]} Ka8 {[%emt 0:02:30]} 42. b6 {[%emt 0:00:30]} Kb7 {[%emt 0:00:30]} 43. Bd4 {[%emt 0:00:00]} Bxd4 {[%emt 0:03:30]} 44. Kxd4 {[%emt 0:00:00]} Kxb6 {[%emt 0:00:30]} 45. Rxh7 {[%emt 0:00:30]} Rd8 {[%emt 0:05:40]} 46. Rd7 {[%emt 0:00:30]} Re8 {[%emt 0:00:09]} 47. Kxd5 {[%emt 0:03:30]} Re5+ {[%emt 0:00:50]} 48. Kd6 {[%emt 0:00:00]} Ra5 {[%emt 0:00:09]} 49. Ke6 {[%emt 0:00:00]} Ra3 {[%emt 0:05:21]} 50. Kxf6 {[%emt 0:00:30]} Rxf3+ {[%emt 0:01:47]} 51. Kxg5 {[%emt 0:00:30]} Ra3 {[%emt 0:00:18]} 52. f4 {[%emt 0:00:00]} Kc6 {[%emt 0:00:14]} 53. Re7 {[%emt 0:00:00]} Kd6 {[%emt 0:00:11]} 54. Kf6 {[%emt 0:00:30]} Ra1 {[%emt 0:01:21]} 55. f5 {[%emt 0:00:00]} Ra5 {[%emt 0:00:05]} 56. Rh7 {[%emt 0:00:00]} Ra6 {[%emt 0:00:22]} 57. Kg5 {[%emt 0:01:30]} Ra5 {[%emt 0:01:11]} 58. Kg6 {[%emt 0:00:00]} Ra1 {[%emt 0:00:18]} 59. f6 {[%emt 0:00:00]} Rg1+ {[%emt 0:00:44]} 60. Kf7 {[%emt 0:00:30]} Ra1 {[%emt 0:00:34]} 61. Ke8 {[%emt 0:00:00]} Re1+ {[%emt 0:06:38]} 62. Kd8 {[%emt 0:00:00]} 1-0

[Event "7th Cesme Open-A 2019"]
[Site "Cesme"]
[Date "2019.06.24"]
[Round "1"]
[White "Eminov, Orkhan"]
[Black "Kaya, Enes"]
[Result "1-0"]
[ECO "B31"]
[WhiteElo "2314"]
[BlackElo "1931"]
[Annotator "NA"]
[PlyCount "75"]
[EventDate "2019.06.24"]
[EventType "swiss"]
[EventCountry "TUR"]
[SourceTitle "playchess.com"]
[Source "ChessBase"]
[SourceQuality "1"]
[TimeControl "5400+30"]

1. e4 c5 2. Nf3 Nc6 3. Bb5 g6 4. O-O Bg7 5. Re1 Nf6 6. e5 Nd5 {[%emt 0:01:00]} 7. Nc3 {[%emt 0:10:30]} Nc7 {[%emt 0:00:30]} 8. Bxc6 {[%emt 0:00:30]} dxc6 {[%emt 0:00:30]} 9. Ne4 {[%emt 0:00:30]} Ne6 {[%emt 0:00:30]} 10. d3 {[%emt 0:00:30]} O-O {[%emt 0:00:30]} 11. Be3 {[%emt 0:00:30]} b6 {[%emt 0:00:00]} 12. Qd2 {[%emt 0:00:30]} Nd4 {[%emt 0:01:00]} 13. Nxd4 {[%emt 0:11:30]} cxd4 {[%emt 0:00:30]} 14. Bh6 {[%emt 0:01:30]} c5 {[%emt 0:00:30]} 15. Bxg7 {[%emt 0:15:30]} Kxg7 {[%emt 0:00:30]} 16. h4 {[%emt 0:02:30]} Qd7 {[%emt 0:11:30]} 17. h5 {[%emt 0:11:30]} Qg4 {[%emt 0:09:30]} 18. h6+ {[%emt 0:05:30]} Kh8 {[%emt 0:00:30]} 19. b4 {[%emt 0:00:00]} Bb7 {[%emt 0:12:30]} 20. bxc5 {[%emt 0:04:00]} bxc5 {[%emt 0:00:30]} 21. f3 {[%emt 0:03:30]} Qh4 {[%emt 0:04:30]} 22. Nxc5 {[%emt 0:06:30]} Bd5 {[%emt 0:01:30]} 23. Ne4 {[%emt 0:03:30]} Rfc8 {[%emt 0:07:30]} 24. Rac1 {[%emt 0:04:25]} Rab8 {[%emt 0:03:30]} 25. c4 {[%emt 0:05:26]} dxc3 {[%emt 0:02:30]} 26. Nxc3 {[%emt 0:04:46]} Qd4+ {[%emt 0:01:30]} 27. Qf2 {[%emt 0:01:11]} Qxf2+ {[%emt 0:10:30]} 28. Kxf2 {[%emt 0:00:07]} Be6 {[%emt 0:00:30]} 29. d4 {[%emt 0:02:28]} Rc4 {[%emt 0:06:30]} 30. d5 {[%emt 0:00:36]} Rb2+ {[%emt 0:00:30]} 31. Ke3 {[%emt 0:02:14]} Bd7 {[%emt 0:01:30]} 32. Ne4 {[%emt 0:00:31]} Ra4 {[%emt 0:04:30]} 33. Rc7 {[%emt 0:00:22]} Ra3+ {[%emt 0:01:54]} 34. Kf4 {[%emt 0:00:14]} g5+ {[%emt 0:01:51]} 35. Nxg5 {[%emt 0:01:23]} Ra4+ {[%emt 0:03:39]} 36. Re4 {[%emt 0:00:31]} f6 {[%emt 0:00:16]} 37. Rxa4 {[%emt 0:01:07]} fxg5+ {[%emt 0:00:30]} 38. Kg3 {[%emt 0:00:09]} 1-0

[Event "7th Cesme Open-A 2019"]
[Site "Cesme"]
[Date "2019.06.24"]
[Round "1"]
[White "Gokbulut, Julia"]
[Black "Iskandarov, Misratdin"]
[Result "0-1"]
[ECO "E47"]
[WhiteElo "2058"]
[BlackElo "2502"]
[Annotator "ChessBase"]
[PlyCount "60"]
[EventDate "2019.06.24"]
[EventType "swiss"]
[EventCountry "TUR"]
[SourceTitle "playchess.com"]
[Source "ChessBase"]
[SourceQuality "1"]
[TimeControl "5400+30"]

1. d4 Nf6 2. c4 e6 3. Nc3 Bb4 4. e3 O-O 5. Bd3 d6 6. Nge2 e5 7. O-O {[%emt 0:02:30]} Bxc3 {[%emt 0:10:30]} 8. Nxc3 {[%emt 0:00:30]} Re8 {[%emt 0:00:00]} 9. Qc2 {[%emt 0:00:30]} Nc6 {[%emt 0:01:00]} 10. d5 {[%emt 0:01:30]} Nb4 {[%emt 0:01:30]} 11. Qb1 {[%emt 0:00:30]} Nxd3 {[%emt 0:00:30]} 12. Qxd3 {[%emt 0:00:30]} e4 {[%emt 0:04:30]} 13. Qc2 {[%emt 0:06:30]} Qe7 {[%emt 0:02:30]} 14. a3 {[%emt 0:03:30]} Qe5 {[%emt 0:00:30]} 15. f4 {[%emt 0:07:30]} exf3 {[%emt 0:00:30]} 16. gxf3 {[%emt 0:00:30]} c6 {[%emt 0:00:30]} 17. Qd3 {[%emt 0:02:30]} Bh3 {[%emt 0:00:30]} 18. Rf2 {[%emt 0:00:30]} Qg5+ {[%emt 0:02:30]} 19. Kh1 {[%emt 0:00:30]} Qh4 {[%emt 0:00:30]} 20. Kg1 {[%emt 0:06:30]} cxd5 {[%emt 0:00:30]} 21. Nxd5 {[%emt 0:02:30]} Nxd5 {[%emt 0:02:30]} 22. cxd5 {[%emt 0:00:30]} Rac8 {[%emt 0:00:30]} 23. Bd2 {[%emt 0:02:30]} Re5 {[%emt 0:00:30]} 24. e4 {[%emt 0:02:30]} Rg5+ {[%emt 0:00:30]} 25. Bxg5 {[%emt 0:03:30]} Qxg5+ {[%emt 0:00:00]} 26. Kh1 {[%emt 0:00:30]} Rc1+ {[%emt 0:00:00]} 27. Qd1 {[%emt 0:00:00]} Rxd1+ {[%emt 0:00:30]} 28. Rxd1 {[%emt 0:00:00]} Qe3 {[%emt 0:00:00]} 29. Kg1 {[%emt 0:00:30]} g5 {[%emt 0:00:00]} 30. Ra1 {[%emt 0:04:30]} h5 {[%emt 0:00:30]} 0-1

[Event "7th Cesme Open-A 2019"]
[Site "Cesme"]
[Date "2019.06.24"]
[Round "1"]
[White "Kocyigit, Buse Naz"]
[Black "Mammadov, Zaur"]
[Result "0-1"]
[ECO "D26"]
[WhiteElo "2045"]
[BlackElo "2428"]
[Annotator "NA"]
[PlyCount "50"]
[EventDate "2019.06.24"]
[EventType "swiss"]
[EventCountry "TUR"]
[SourceTitle "playchess.com"]
[Source "ChessBase"]
[SourceQuality "1"]
[TimeControl "5400+30"]

1. d4 d5 2. Nf3 Nf6 3. c4 dxc4 4. e3 e6 5. Bxc4 c5 6. Nc3 Nc6 {[%emt 0:04:00]} 7. O-O {[%emt 0:07:30]} cxd4 {[%emt 0:00:30]} 8. exd4 {[%emt 0:00:30]} Be7 {[%emt 0:00:00]} 9. a3 {[%emt 0:05:30]} O-O {[%emt 0:02:00]} 10. b4 {[%emt 0:18:30]} a6 {[%emt 0:01:30]} 11. Re1 {[%emt 0:14:30]} Qc7 {[%emt 0:05:30]} 12. Qb3 {[%emt 0:04:30]} b5 {[%emt 0:00:30]} 13. Bf1 {[%emt 0:01:30]} Rd8 {[%emt 0:00:30]} 14. Bb2 {[%emt 0:01:30]} Bb7 {[%emt 0:01:30]} 15. Rac1 {[%emt 0:04:30]} Rac8 {[%emt 0:00:00]} 16. a4 {[%emt 0:14:30]} Qf4 {[%emt 0:05:00]} 17. axb5 {[%emt 0:03:30]} Nxd4 {[%emt 0:00:30]} 18. Nxd4 {[%emt 0:03:15]} Ng4 {[%emt 0:00:30]} 19. Nf3 {[%emt 0:00:52]} Bxf3 {[%emt 0:00:00]} 20. g3 {[%emt 0:00:13]} Qd2 {[%emt 0:02:00]} 21. Be2 {[%emt 0:10:04]} Qh6 {[%emt 0:01:30]} 22. h4 {[%emt 0:00:51]} Bxh4 {[%emt 0:00:30]} 23. Bxf3 {[%emt 0:02:31]} Bxg3 {[%emt 0:00:30]} 24. Re2 {[%emt 0:01:22]} Qh2+ {[%emt 0:02:30]} 25. Kf1 {[%emt 0:00:06]} Bxf2 {[%emt 0:00:30]} 0-1